Cogmind - Beta 14 @@@ ROGUE MODE // 2024.12.07 @ 16:05:28 Player: lavinia Result: Destroyed by S-10 Pest with Light Assault Rifle Performance ------------- Evolutions (1) 500 Regions Visited (2) 400 Robots Destroyed (44) 220 Value Destroyed (1311) 1311 Prototype IDs (6) 120 Alien Tech Used (0) 0 Bonus (62) 62 TOTAL SCORE: 2613 Bonus ------- High Alert Combat Kills 62 Cogmind --------- Core Integrity 0/400 Matter 290/300 Energy 92/100 System Corruption 0% Temperature Cool (0) Movement Rolling (105) Ox1 Location -9/Materials Parts ------- > --- POWER (1) -------- (None) > --- PROPULSION (4) --- Armored Wheel > --- UTILITY (2) ------ Large Storage Unit System Shield > --- WEAPON (2) ------- Hammer > --- INVENTORY (15) --- Medium Storage Unit Large Storage Unit Large Battery (200) High-capacity Matter Pod (200) Weight Redist. System Structural Scanner Machine Analyzer System Shield System Shield System Shield EM Shotgun Particle Cannon Peak State ------------ > --- POWER ------------ Heavy Ion Engine > --- PROPULSION ------- Wheel Armored Wheel Armored Wheel Armored Wheel > --- UTILITY ---------- Large Storage Unit System Shield > --- WEAPON ----------- EM Pulse Gun Grenade Launcher > --- INVENTORY -------- Armored Wheel Medium Storage Unit Large Storage Unit Large Battery High-capacity Matter Pod Weight Redist. System Structural Scanner Machine Analyzer System Shield System Shield System Shield Light Assault Rifle Hammer [Rating: 18] Favorites ----------- Power Light Ion Engine Engine Light Ion Engine Propulsion Armored Wheel Wheel Armored Wheel Utility Large Storage Unit Device Structural Scanner Storage Large Storage Unit Processor Transport Network Coupler Hackware System Shield Weapon Light Assault Rifle Energy Gun Medium Laser Energy Cannon Particle Cannon Ballistic Gun Light Assault Rifle Launcher Grenade Launcher Impact Weapon Hammer Build | -11 -10 -9 ------- Run | Yrd Mat Mat Slots Evolved 2 | . . 2 Power . | . . . Propulsion 2 | . . 2 Utility . | . . . Weapon . | . . . Parts Attached 48 | 5 25 18 Power 3 | 1 1 1 Engine 3 | 1 1 1 Core . | . . . Reactor . | . . . Propulsion 10 | 2 3 5 Treads . | . . . Leg . | . . . Wheel 10 | 2 3 5 Hover . | . . . Flight . | . . . Utility 15 | . 14 1 Device 4 | . 4 . Storage 9 | . 9 . Processor 1 | . 1 . Hackware 1 | . . 1 Protection . | . . . Artifact . | . . . Weapon 20 | 2 7 11 Energy Gun 6 | 1 2 3 Energy Cannon 1 | . . 1 Ballistic Gun 5 | 1 3 1 Ballistic Cannon . | . . . Launcher 5 | . 2 3 Special Weapon . | . . . Impact Weapon 3 | . . 3 Slashing Weapon . | . . . Piercing Weapon . | . . . Special Melee Weapon . | . . . Unidentified Prototypes 1 | . . 1 Parts Lost 19 | . 6 13 Power 3 | . 1 2 Propulsion 7 | . 2 5 Utility . | . . . Weapon 9 | . 3 6 Highest Loss Streak 6 | . 6 3 To Critical Strikes 1 | . . 1 Average Slot Usage (%) 90 | . 94 85 Engine 10 | . 12 9 Wheel 29 | . 26 32 Device 2 | . 3 . Storage 18 | . 22 14 Hackware 3 | . . 7 Energy Gun 10 | . 11 8 Energy Cannon 1 | . . 4 Ballistic Gun 9 | . 13 4 Launcher 2 | . 2 1 Impact Weapon 1 | . . 2 Peak Build Rating 18 | 5 8 18 Average Rating 10 | 4 6 14 On Entrance 4 | . 5 8 Naked Turns . | . . . Heaviest Build 37 | 6 33 37 Greatest Support 52 | 32 32 52 Greatest Overweight (x) 8 | . 8 1 Average Overweight (x) . | . . . Largest Inventory Capacity 15 | 5 15 15 Average Capacity 14 | 5 14 15 Most Carried 15 | . 14 15 Average Carried 9 | . 6 12 Final Capacity 15 | 5 15 15 Final Carried 14 | . 14 12 Class Distribution -------------------- 100% | Mutant Dominant Class ---------------- Mutant | -10/Materials Mutant | -9/Materials Resources | -11 -10 -9 ----------- Run | Yrd Mat Mat Matter Collected 1343 | 242 624 477 Remotely . | . . . Salvage Created 1571 | . 614 957 Parts 90 | . 30 60 Haulers Intercepted 3 | . 2 1 Recyclers Shooed . | . . . Parts Field Recycled . | . . . Retrieved Matter . | . . . Parts Self-Destructed . | . . . Prevented . | . . . Kills | -11 -10 -9 ------- Run | Yrd Mat Mat Combat Hostiles Destroyed 38 | . 14 24 Guns 25 | . 10 15 Cannons 1 | . . 1 AOE 10 | . 4 6 Classes Destroyed 6 | . 4 2 Worker 1 | . 1 . Hauler 3 | . 2 1 Watcher 2 | . . 2 Swarmer 7 | . 3 4 Grunt 25 | . 11 14 Sentry 6 | . . 6 Best Kill Streak 6 | . 3 6 Combat Bots Only 5 | . 3 5 Max Kills in Single Turn 3 | . 3 2 Gunslinging . | . . . Exploded 3 | . 3 2 Melee . | . . . Uniques/NPCs Destroyed . | . . . Combat | -11 -10 -9 -------- Run | Yrd Mat Mat Hostile Shots Fired 221 | . 72 149 Missed 64 | . 21 43 Damage Taken 2181 | . 698 1483 Core 643 | . 239 404 Absorbed by Shields . | . . . Regen/Repaired (Parts) 23 | . 23 . Core Remaining (%) 52 | 100 4 . Volleys Fired 132 | . 71 61 Largest 2 | . 2 2 Hottest 108 | . 70 108 Shots Fired 228 | . 128 100 Gun 207 | . 125 82 Cannon 8 | . . 8 Launcher 13 | . 3 10 Special . | . . . Kinetic 101 | . 69 32 Thermal 93 | . 56 37 Explosive 13 | . 3 10 Electromagnetic 21 | . . 21 Robot Hit Streak 13 | . 10 13 Robot Miss Streak 4 | . 4 3 Penetration Max . | . . . Secondary Targets 2 | . 1 1 Max Gunslinging Chain 1 | . 1 1 Shots Hit Robots 156 | . 82 74 Core Hits 84 | . 36 48 Critical Kills 1 | . 1 . Critical Parts Destroyed 1 | . . 1 Critical Strikes 4 | . 3 1 Burn 2 | . 2 . Destroy 1 | . 1 . Smash 1 | . . 1 Melee Attacks 7 | . . 7 Impact 7 | . . 7 Slashing . | . . . Piercing . | . . . Sneak Attacks . | . . . Combat Hostiles . | . . . Follow-up Attacks . | . . . Damage Inflicted 2555 | . 1013 1542 Guns 1518 | . 821 697 Cannons 61 | . . 61 Explosions 842 | . 192 650 Melee 134 | . . 134 Ramming . | . . . Kinetic 604 | . 392 212 Thermal 742 | . 429 313 Explosive 809 | . 192 617 Electromagnetic 266 | . . 266 Impact 134 | . . 134 Slashing . | . . . Piercing . | . . . Highest Corruption . | . . . Average Corruption . | . . . Corruption Purged . | . . . Corruption Blocked . | . . . Overload Shots . | . . . Overflow Damage 153 | . . 153 Projectiles . | . . . Explosions 82 | . . 82 Melee 71 | . . 71 Knockbacks . | . . . Impact . | . . . Kinetic . | . . . Secondary . | . . . Self-Inflicted Damage 211 | . 33 178 Shots 6 | . 2 4 Rammed . | . . . Targets Rammed . | . . . Kicked . | . . . Crushed . | . . . Highest Temperature 257 | . 257 126 Average Temperature 52 | . 66 32 Received Heat Transfer 900 | . 426 474 Siege Activations . | . . . Robots Corrupted 2 | . . 2 Combat Hostiles 2 | . . 2 Parts Fried 1 | . . 1 Impact Corruptions 4 | . . 4 Robots Melted . | . . . Combat Hostiles . | . . . Parts Melted 1 | . . 1 Heat Transferred 2067 | . 1406 661 Parts Sabotaged . | . . . Parts Stolen . | . . . Parts Stripped . | . . . Power Chain Reactions . | . . . Alert | -11 -10 -9 ------- Run | Yrd Mat Mat Peak Influence 522 | . 244 522 Initial 24 | . . 24 Average 175 | . 85 290 Maximum Alert Level 2 | . 1 2 Low Security (%) 65 | 100 90 35 Level 1 17 | . 9 26 Level 2 16 | . . 38 Level 3 . | . . . Level 4 . | . . . Level 5 . | . . . High Security . | . . . Max Security . | . . . Squads Dispatched 9 | . 4 5 Investigation 8 | . 3 5 Extermination . | . . . Reinforcement 1 | . 1 . Assault . | . . . Garrison . | . . . Intercept . | . . . Searches Triggered . | . . . Construction Impeded . | . . . Haulers Reinforced . | . . . Active Scanning Responses . | . . . Cargo Convoy Interrupts . | . . . Stealth | -11 -10 -9 --------- Run | Yrd Mat Mat Distress Signals 2 | . 2 . Communications Jammed . | . . . Distress Signals . | . . . Times Spotted 56 | . 23 33 Peak Tracking Total 6 | . 3 6 Tactical Retreats 2 | . 2 . Traps | -11 -10 -9 ------- Run | Yrd Mat Mat Traps Triggered 2 | . 1 1 Indirectly . | . . . Trap Hack Attempts . | . . . Triggered . | . . . Disarmed . | . . . Reprogrammed 4 | . . 4 Reused . | . . . Traps Extracted . | . . . Installed . | . . . Triggered . | . . . Machines | -11 -10 -9 ---------- Run | Yrd Mat Mat Machines Disabled 3 | . . 3 Max in Single Turn 2 | . . 2 Machines Repaired . | . . . Machines Dismantled . | . . . Machines Sabotaged . | . . . Overloaded Fab Kills . | . . . Hacking | -11 -10 -9 --------- Run | Yrd Mat Mat Machines Accessed 16 | . 7 9 Terminals 15 | . 6 9 Fabricators . | . . . Repair Stations 1 | . 1 . Recycling Units . | . . . Scanalyzers . | . . . Garrison Access . | . . . Total Hacks 78 | . 25 53 Successful 28 | . 10 18 Failed 49 | . 15 34 Catastrophic 10 | . 4 6 Database Lockouts 1 | . . 1 Manual 27 | . 6 21 Terminals 76 | . 23 53 Fabricators . | . . . Repair Stations 2 | . 2 . Recycling Units . | . . . Scanalyzers . | . . . Garrison Access . | . . . Terminal Hacks 26 | . 8 18 Record 9 | . 1 8 Robot Analysis 2 | . 2 . Prototype ID Bank 3 | . 1 2 Branch Access Points 3 | . . 3 Terminal Index 2 | . 1 1 Alert Level 2 | . 2 . Unreport Threat 1 | . 1 . Locate Traps 1 | . . 1 Reprogram Traps 1 | . . 1 Zone Layout 2 | . . 2 Fabricator Hacks . | . . . Repair Station Hacks 2 | . 2 . Scan Component 1 | . 1 . Repair 1 | . 1 . Recycling Unit Hacks . | . . . Scanalyzer . | . . . Garrison Access Hacks . | . . . Unauthorized Hacks . | . . . Terminals . | . . . Fabricators . | . . . Repair Stations . | . . . Recycling Units . | . . . Scanalyzers . | . . . Garrison Access . | . . . Data Cores Recovered . | . . . Used . | . . . Hacking Detections 15 | . 6 9 Full Trace Events 15 | . 6 9 Feedback Events . | . . . Feedback Blocked 1 | . . 1 Robot Schematics Acquired . | . . . Robots Built . | . . . Authchips . | . . . Time . | . . . Total Robot Build Rating . | . . . Part Schematics Acquired . | . . . Parts Built . | . . . Authchips . | . . . Time . | . . . Total Part Build Rating . | . . . Parts Repaired 1 | . 1 . Time 26 | . 26 . Parts Recycled . | . . . Recycled Matter . | . . . Retrieved Matter . | . . . Retrieved Components . | . . . Parts Scanalyzed . | . . . Part Schematics Acquired . | . . . Parts Damaged . | . . . Bothacking | -11 -10 -9 ------------ Run | Yrd Mat Mat Used RIF Installer . | . . . Robots Hacked . | . . . Non-combat . | . . . Combat . | . . . Robot Hacks Applied . | . . . Relay Couplers Released . | . . . Fabnet Peak Effective % . | . . . Robots Rewired . | . . . Allies Hacked . | . . . Hacks Repelled . | . . . Allies | -11 -10 -9 -------- Run | Yrd Mat Mat Total Allies . | . . . Largest Group . | . . . Highest-Rated Group . | . . . Highest-Rated Ally . | . . . Total Orders . | . . . Ally Attacks . | . . . Total Damage . | . . . Kills . | . . . Allies Corrupted . | . . . Allies Melted . | . . . Intel | -11 -10 -9 ------- Run | Yrd Mat Mat Robot Analysis Total 2 | . 2 . Derelict Logs Recovered . | . . . Drone Launches . | . . . Drone Recoveries . | . . . Exploration | -11 -10 -9 ------------- Run | Yrd Mat Mat Turns Passed 2098 | 38 1126 934 Spaces Moved 1294 | 32 654 608 Core 7 | 3 4 . Treads . | . . . Legs . | . . . Wheels 1287 | 29 650 608 Hover . | . . . Flight . | . . . Fastest Speed 50 | 50 95 85 Average Speed 98 | 95 101 96 Slowest Speed 450 | 100 450 105 Overloaded Moves . | . . . Propulsion Burnouts . | . . . Robots Hopped . | . . . Cave-ins Triggered . | . . . Exploration Rate (%) 55 | 3 94 70 Regions Visited 2 Branch Regions . Pre-discovered Areas . | . . . Known Exits Taken . | . . . Unknown Exits Taken 2 | 1 1 . Scrap Searched . | . . . Spaces Dug . | . . . Terrain Destroyed 172 | . 25 147 Melee . | . . . Projectile . | . . . AOE 172 | . 25 147 Terrain Rammed . | . . . Walls Destroyed . | . . . Machines Disabled . | . . . Actions | -11 -10 -9 --------- Run | Yrd Mat Mat Total 1880 | 36 994 850 Wait 363 | . 222 141 Move 1292 | 31 653 608 Hop . | . . . Pick Up 28 | . 18 10 Fast Attach 20 | 5 12 3 Attach 10 | . 2 8 Detach 1 | . 1 . Swap 18 | . 11 7 Drop 9 | . 4 5 Fire 132 | . 71 61 Melee 7 | . . 7 Ram . | . . . Kick . | . . . Crush . | . . . Escape Stasis . | . . . Rewire . | . . . Trap . | . . . Miscellaneous . | . . . Route ------- -11/Scrapyard -10/Materials (discovered 3 exits: *Mat x2 / [*Min]) -9/Materials (discovered 3 exits: [*Mat] / *Min x2) History --------- Turn | Location | Event 19 | -11/Scrapyard | Discovered new exit (range 15) 39 | -11/Scrapyard | Entered Materials 311 | -10/Materials | Build established: Mutant 772 | -10/Materials | Discovered new exit (range 3) 883 | -10/Materials | Discovered new exit (range 7) 918 | -10/Materials | Core integrity fell below 50% 936 | -10/Materials | Core integrity fell below 20% 993 | -10/Materials | Lost 6 parts (1p2n3w) 1112 | -10/Materials | Repaired Hcp. Matter Pod 1155 | -10/Materials | Discovered new exit (range 10) 1165 | -10/Materials | Entered another Materials area 1165 | -9/Materials | Evolved 2 slots: Propulsion x2 1449 | -9/Materials | Discovered new exit (range 16) 1567 | -9/Materials | Identified exit to Mines 1644 | -9/Materials | Core integrity fell below 50% 1680 | -9/Materials | Lost 3 parts (2n1w) 1688 | -9/Materials | Discovered new exit (range 13) 1976 | -9/Materials | Central database locked down 2064 | -9/Materials | Lost 3 parts (1p1n1w) 2080 | -9/Materials | Core integrity fell below 20% 2099 | -9/Materials | Destroyed by S-10 Pest with Light Assault Rifle Last Messages --------------- Acquired 5 matter. Acquired EM Shotgun. EM Shotgun destroyed. Sml. Laser destroyed. Destroyed Flight Unit. S-10 Pest system corrupted by crushing effect. Destroyed Lgt. Ion Engine. Destroyed Flight Unit. S-10 Pest system corrupted by crushing effect. S-10 Pest system terminally corrupted. K-01 Serf collects debris. Y-45 Defender suffers critical hit (Smash). Destroyed Beam Rifle. Y-45 Defender system corrupted by crushing effect. Y-45 Defender system terminally corrupted. Heat Sink fried. K-01 Serf collects debris. M-13 Machinist repairs Y-45 Defender. Map ----- +----------------------------------------------------+ | ???????????# """ """ # | | ???????????# + | | ??########## # """ """ | | ??# # " """ # """ """ | | ??# """ # T """ ## """ """ | | ??# """ # " """ ########## | | ??# """ # ## ? | | ??# + ## """ | | ??#"" """ # ####### ## """ | | ??#"Y """ ### # # # """ | | ??#"" """ #?# #"" # # | | ??# #?# #"T + T + """ | | ??##########?# #"" # # """ | | ?????????????# # # # """ | | #######??????#=# !### ### | | # ########%# #?# ########### | | # # !%!######?# | | # # [ ###????####/######## | | # # #?????# #???? | | # # #?????# #???? | | # + +?????# !!!#???? | | # # Y #?????#! !!!#???? | | # ### #?????# !! #???# | | # ###/########?????# #???# | | # ## s #??????????########???# | | # ##!!@ #?????????????????????# | | # ##!! #?????????????????????# | | ########s k #?????????????????????# | | ???????# % #????????????????????## | | ???????###+##????????????????????# | | ????????#=% ?????????????????????## | | ??????? ??????????????????????? | | ?????? ## #?????????????????????? | | ?????#??## ##?????????????????????? | | ?????????# #??????????????????????? | | ?????????# #??????????????????????? | | ????????? ??????????????????????? | | ????????? ??????????????????????? | | ????????? ??????????????????????? | | ?????????# #??????????????????????? | | ?????????? ???????????????????????? | | ?????????? ???????????????????????? | | ?????????? ???????????????????????? | | ?????????? ???????????????????????? | | ??????????????????????????????????? | | ??????????????????????????????????? | | ??????????????????????????????????? | | ??????????????????????????????????? | | ??????????????????????????????????? | | ??????????????????????????????????? | +----------------------------------------------------+ Best States ------------- Heat Dissipation 28 Energy Generation 14 Energy Capacity 325 Matter Stores 500 Matter Capacity 500 Sight Range 16 Terrain Scan Density 10 Evasion (%) 43 Defensive Hacking 10 Item Schematics ----------------- None Robot Schematics ------------------ None Fabricated ------------ Nothing Alien Tech Used ----------------- None Achievements -------------- None Challenges ------------ None Game ------ Seed GodSiegeExoskeleton Manual? 0 Play Time 00:38:00 Cumulative 9.5 hours Start 2024.12.07 @ 15:24:49 End 2024.12.07 @ 16:05:28 Sessions 1 Manual Loads 0 Difficulty Rogue Special Mode None Game No. 15 Rogue 15 Adventurer 0 Explorer 0 Win Type - Total 0 Types 0/0/0/0/0/0/0/0/0 Lore% 8 Gallery% 9 Achievement% 12 Wizard Run 0 Options --------- Layout 1 ASCII 0 Keyboard 0 Movement Numpad Keybinds 0 Fullscreen 2 Font 24/Smallcaps Map View 50x35 Zoom Use 0% Tactical HUD 0 Map Filters NONE Filters NONE Steam 1 RUN: 78f1e935-2920-4fb8-9e51-cfba6b7f73a9